bitfinex/quotes_ETHUSD_20251009
["timestamp","ask_amount","ask_price","bid_price","bid_amount"]
[1760022713884,17.88165252,4349.4,4349.3,0.001]
[1760022714105,4.85282056,4349.3,4349.2,0.001]
[1760022714415,5.34691179,4349.3,4349.2,0.001]
[1760022714616,5.78471179,4349.3,4349.2,0.001]
[1760022714823,15.17157902,4349.3,4349.2,0.001]
[1760022715321,12.78157902,4349.3,4349.2,0.001]
[1760022715486,15.17157902,4349.3,4349.2,0.001]
[1760022715892,6.19757902,4349.3,4349.2,0.001]
[1760022716093,15.17257902,4349.3,4349.2,0.001]
[1760022716518,6.19757902,4349.3,4349.2,0.001]
[1760022716721,15.17257902,4349.3,4349.2,0.001]
[1760022717293,12.78157902,4349.3,4349.2,0.001]
[1760022717496,15.17257902,4349.3,4349.2,0.001]
[1760022717698,10.48235846,4349.3,4349.2,0.001]
[1760022718030,2.41409123,4349.3,4349.2,0.001]
[1760022718191,8.99809123,4349.3,4349.2,0.001]
[1760022718395,9.63169123,4349.3,4349.2,0.001]
[1760022718631,10.45429338,4349.3,4349.2,0.001]
[1760022718806,3.04769123,4349.3,4349.2,0.001]
[1760022719133,8.32867952,4349.3,4349.2,0.001]
[1760022719724,10.24867952,4349.3,4349.2,0.001]
[1760022720292,2.41329123,4349.3,4349.2,0.001]
[1760022720701,3.04689123,4349.3,4349.2,0.001]
[1760022722047,3.66384582,4349.3,4349.2,0.001]
[1760022722333,2.41329123,4349.3,4349.2,0.1154]
[1760022722535,0.49329123,4349.3,4349.2,0.13839273]
[1760022722734,0.002,4349.8,4349.2,0.35966978]
[1760022722933,0.002,4349.8,4349.2,0.1154]
[1760022723243,0.002,4349.8,4349.7,0.1144]
[1760022723803,0.002,4349.8,4349.2,0.001]
[1760022724217,0.002,4349.8,4349.2,0.02399273]
[1760022724515,0.002,4349.8,4349.2,0.001]
[1760022726023,0.6336,4349.7,4349.2,0.001]
[1760022726542,1.25055459,4349.7,4349.2,0.001]
[1760022727138,0.6336,4349.7,4349.2,0.001]
[1760022728941,0.6336,4349.7,4349.2,0.02399273]
[1760022730140,0.002,4349.8,4349.2,0.001]
[1760022730573,0.002,4349.8,4349.3,0.23063709]
[1760022730766,0.002,4349.8,4349.4,0.02299167]
[1760022731244,0.6336,4349.6,4349.2,0.001]
[1760022731633,0.61895459,4349.8,4349.2,0.02399273]
[1760022731845,0.6336,4349.7,4349.3,0.0229922]
[1760022732134,0.6336,4349.7,4349.2,0.001]
[1760022732359,0.4937446,4349.6,4349.2,0.001]
[1760022732671,0.6336,4349.4,4349.2,0.001]
[1760022732863,1.1273446,4349.3,4349.2,0.001]
[1760022733035,0.4937446,4349.3,4349.2,0.001]
[1760022735343,1.1273446,4349.3,4349.2,0.001]
[1760022737578,1.1273446,4349.3,4349.2,0.02399273]
[1760022737776,0.4937446,4349.3,4349.2,0.02399273]
[1760022737938,0.4937446,4349.3,4349.2,0.1154]
[1760022740371,1.1273446,4349.3,4349.2,0.1154]
[1760022740556,1.30177452,4349.3,4349.2,0.1154]
[1760022740741,1.30177452,4349.3,4349.2,0.001]
[1760022741052,5.9718584,4349.3,4349.2,0.001]
[1760022741253,5.94889508,4349.3,4349.2,0.001]
[1760022741781,7.18276409,4349.3,4349.2,0.001]
[1760022741987,5.94889508,4349.3,4349.2,0.001]
[1760022742196,4.85287342,4349.2,4349.1,0.006]
[1760022742402,10.01638847,4349.2,4349.1,0.006]
[1760022742568,2.93303204,4348.9,4348.8,0.001]
[1760022742891,11.95173996,4348.9,4348.8,0.001]
[1760022743091,12.35667664,4348.9,4348.8,0.001]
[1760022743393,10.0572446,4348.9,4348.8,0.001]
[1760022743700,14.05093951,4348.9,4348.8,0.001]
[1760022743866,12.81648289,4348.9,4348.8,0.001]
[1760022744052,11.75149941,4348.9,4348.8,0.001]
[1760022744253,11.32359941,4348.9,4348.8,0.001]
[1760022744501,10.08915085,4348.9,4348.8,0.001]
[1760022744816,14.05093145,4348.9,4348.8,0.001]
[1760022745303,3.0473446,4348.9,4348.8,0.001]
[1760022745624,3.07030792,4348.9,4348.8,0.001]
[1760022746173,5.36973996,4348.9,4348.8,0.001]
[1760022746376,5.34677664,4348.9,4348.8,0.001]
[1760022746589,3.0473446,4348.9,4348.8,0.001]
[1760022746808,4.4386202,4348.9,4348.8,0.001]
[1760022747105,6.73805224,4348.9,4348.8,0.001]
[1760022747279,8.37743748,4348.9,4348.8,0.001]
[1760022747466,7.14298892,4348.9,4348.8,0.001]
[1760022747863,6.71508892,4348.9,4348.8,0.001]
[1760022748062,4.41565688,4348.9,4348.8,0.001]
[1760022748299,11.0206202,4348.9,4348.8,0.001]
[1760022748487,10.99765688,4348.9,4348.8,0.001]
[1760022748673,13.29708892,4348.9,4348.8,0.001]
[1760022748985,13.73518892,4348.9,4348.8,0.001]
[1760022749711,13.29708892,4348.9,4348.8,0.001]
[1760022749899,13.73518892,4348.9,4348.8,0.001]
[1760022750096,10.99765688,4348.9,4348.8,0.001]
[1760022750621,9.6303446,4348.9,4348.8,0.001]
[1760022750787,11.92977664,4348.9,4348.8,0.001]
[1760022752318,5.78487664,4348.9,4348.8,0.001]
[1760022752520,12.36687664,4348.9,4348.8,0.001]
[1760022753426,5.78487664,4348.9,4348.8,0.001]
[1760022753717,10.56220995,4348.9,4348.8,0.001]
[1760022754096,16.71199487,4348.9,4348.8,0.001]
[1760022755118,10.12899487,4348.9,4348.8,0.001]
[1760022755427,16.71099487,4348.9,4348.8,0.001]
[1760022756626,17.14909487,4348.9,4348.8,0.001]
[1760022759407,11.80154343,4348.9,4348.8,0.001]
[1760022759629,20.77454343,4348.9,4348.8,0.001]
[1760022760202,21.45653125,4348.9,4348.8,0.001]
[1760022761006,20.22208269,4348.9,4348.8,0.001]
[1760022761439,3.64807814,4348.9,4348.8,0.001]
[1760022761643,3.64807814,4348.9,4348.8,0.1154]
[1760022761644,0.4937446,4348.9,4348.8,0.1154]
[1760022761827,0.4937446,4348.9,4348.8,0.13839484]
[1760022762140,0.82492581,4349.7,4348.8,0.1154]
[1760022762141,0.6172611,4349.6,4348.8,0.1154]
[1760022762462,0.49390662,4349.5,4349.0,2.29932677]
[1760022762752,0.002,4349.7,4349.4,0.1144]
[1760022764651,0.002,4349.7,4349.5,0.02299114]
[1760022766561,0.0012,4349.7,4349.5,0.02299114]
[1760022767058,0.0012,4349.7,4349.4,0.1144]
[1760022767550,0.0012,4349.7,4349.5,0.02299114]
[1760022768059,0.0012,4349.7,4349.4,0.1144]
[1760022769225,0.0012,4349.7,4349.5,0.02299114]
[1760022769859,0.0012,4349.7,4349.6,9.0854]
[1760022770053,0.0012,4349.7,4349.6,12.52291342]
[1760022771053,0.0012,4349.7,4349.6,22.08791342]
[1760022774672,0.0012,4349.7,4349.6,24.00791342]
[1760022777378,0.0012,4349.7,4349.6,24.28404149]
[1760022777753,0.0012,4349.7,4349.6,24.00791342]
[1760022777946,0.0012,4349.7,4349.6,12.04891342]
[1760022778147,0.0012,4349.7,4349.6,24.00091342]
[1760022778562,0.0012,4349.7,4349.6,15.50391342]
[1760022778762,0.0012,4349.7,4349.6,19.78185144]
[1760022779487,0.0012,4349.7,4349.6,22.08091342]
[1760022780486,0.0012,4349.7,4349.6,19.78185144]
[1760022780968,0.0012,4349.7,4349.6,1.25285144]
[1760022781171,0.0012,4349.7,4349.6,3.5584]
[1760022781496,0.0012,4349.7,4349.6,0.1154]
[1760022781683,0.0012,4349.7,4349.6,6.6914]
[1760022788299,0.0012,4349.7,4349.6,0.001]
[1760022788504,0.0012,4349.7,4349.6,6.577]
[1760022789277,0.0004,4349.7,4349.6,6.577]
[1760022789607,0.0004,4349.7,4349.6,7.4737]
[1760022792911,0.0004,4349.7,4349.6,9.77276198]
[1760022793406,0.0004,4349.7,4349.6,11.69276198]
[1760022793604,0.0004,4349.7,4349.6,11.96889005]
[1760022794554,0.0004,4349.7,4349.6,11.69276198]
[1760022796848,0.0004,4349.7,4349.6,11.96889005]
[1760022797407,0.0004,4349.7,4349.6,11.69276198]
[1760022797834,0.0004,4349.7,4349.6,33.47889005]
[1760022798311,0.0004,4349.7,4349.6,33.31716198]
[1760022798526,0.0004,4349.7,4349.6,5.23116198]
[1760022798810,0.0004,4349.7,4349.6,23.75616198]
[1760022800443,1e-08,4349.8,4349.7,4.21900912]
[1760022800614,1e-08,4349.8,4349.7,6.49376966]
[1760022800816,1e-08,4349.8,4349.7,6.47077957]
[1760022801360,1e-08,4349.8,4349.7,7.01611022]
[1760022801521,0.002,4350.6,4350.5,2.29858636]
[1760022801706,0.002,4350.6,4350.5,4.33298636]
[1760022802074,0.002,4350.6,4350.5,21.6001508]
[1760022802407,0.002,4350.6,4350.5,3.0761508]
[1760022802609,0.002,4350.6,4350.5,21.5991508]
[1760022802814,0.002,4350.6,4350.5,19.2091508]
[1760022803012,0.002,4350.6,4350.5,21.5991508]
[1760022803645,0.002,4350.6,4350.5,0.77756444]
[1760022803845,0.002,4350.6,4350.5,5.6974]
[1760022805550,0.002,4350.6,4350.5,7.99598636]
[1760022811464,0.002,4350.6,4350.5,10.19211443]
[1760022812354,0.0012,4350.6,4350.5,9.91598636]
[1760022818282,0.0012,4350.6,4350.5,4.21858636]
[1760022818452,0.0012,4350.6,4350.5,7.22072619]
[1760022818636,0.0012,4350.6,4350.5,23.38631255]
[1760022819236,0.0012,4350.6,4350.5,21.08772619]
[1760022819574,0.0012,4350.6,4350.5,23.38631255]
[1760022820475,0.0012,4350.6,4350.5,21.46631255]
[1760022820690,0.0012,4350.6,4350.5,23.38631255]
[1760022821798,0.0012,4350.6,4350.5,23.38531255]
[1760022822197,0.0012,4350.6,4350.5,4.87031255]
[1760022822365,0.0012,4350.6,4350.5,2.95031255]
[1760022822564,0.0012,4350.6,4350.5,20.19629841]
[1760022822764,0.0012,4350.6,4350.5,20.17331255]
[1760022825402,0.0012,4350.6,4350.5,21.46531255]
[1760022825971,0.0012,4350.6,4350.5,0.65172619]
[1760022826170,0.0012,4350.6,4350.5,18.93358636]
[1760022826970,0.0012,4350.6,4350.5,20.81358636]
[1760022827168,0.0012,4350.6,4350.5,18.515]
[1760022827410,0.0012,4350.6,4350.5,14.24558636]
[1760022827572,0.0012,4350.6,4350.5,20.81358636]
[1760022827769,0.0012,4350.6,4350.5,23.06535681]
[1760022827974,0.0012,4350.6,4350.5,4.55035681]
[1760022828276,0.0012,4350.6,4350.5,11.36898636]
[1760022829206,0.0012,4350.6,4350.5,9.0704]
[1760022829704,0.0012,4350.6,4350.5,11.36898636]
[1760022829894,0.0012,4350.6,4350.5,9.0704]
[1760022830311,0.0012,4350.6,4350.5,11.36898636]
[1760022830475,0.0012,4350.6,4350.5,11.32217045]
[1760022830808,0.0012,4350.6,4350.5,9.0704]
[1760022831400,0.0012,4350.6,4350.5,9.0714]
[1760022834896,0.0012,4350.6,4350.5,11.36998636]
[1760022835421,0.0004,4350.6,4350.5,11.36998636]
[1760022835781,0.0004,4350.6,4350.5,9.0714]
[1760022837594,0.0004,4350.6,4350.5,11.36998636]
[1760022837792,0.0004,4350.6,4350.5,12.73685909]
[1760022838898,0.0004,4350.6,4350.5,1.48227273]
[1760022839093,0.0004,4350.6,4350.5,7.6124]
[1760022839901,0.0004,4350.6,4350.5,0.001]
[1760022840092,4.97579872,4350.6,4350.5,0.001]
[1760022840287,9.63783225,4350.6,4350.5,0.001]
[1760022840688,5.3469686,4350.6,4350.5,0.001]
[1760022840883,7.78467509,4350.6,4350.5,0.001]
[1760022841085,3.93731144,4350.6,4350.5,0.001]
[1760022841599,4.55470523,4350.6,4350.5,0.001]
[1760022842023,3.93731144,4350.6,4350.5,0.001]
[1760022843906,3.04843507,4350.6,4350.5,0.001]
[1760022845224,3.07139839,4350.6,4350.5,0.001]
[1760022846936,0.0004,4350.6,4350.5,0.001]
[1760022847505,0.0004,4350.6,4350.5,0.02398586]
[1760022848139,0.0004,4350.6,4350.5,0.001]
[1760022848436,0.0004,4350.6,4350.5,1.2502]
[1760022849005,0.0004,4350.6,4350.5,0.001]
[1760022849311,0.0004,4350.6,4350.5,6.568]
[1760022850138,0.0004,4350.6,4350.5,6.6824]
[1760022852653,0.0004,4350.6,4350.5,6.568]
[1760022852654,2.29893353,4350.6,4350.5,6.568]
[1760022852983,4.04393281,4350.6,4350.5,0.001]
[1760022853122,4.36797495,4350.6,4350.5,0.001]
[1760022853474,6.66650848,4350.6,4350.5,0.001]
[1760022853766,6.46965137,4350.6,4350.5,0.001]
[1760022854681,7.0871472,4350.6,4350.5,0.001]
[1760022855348,6.6436472,4350.6,4350.5,0.001]
[1760022856153,6.02615137,4350.6,4350.5,0.001]
[1760022856353,3.72761784,4350.6,4350.5,0.001]
[1760022856544,3.75058116,4350.6,4350.5,0.001]
[1760022856859,7.31580538,4350.6,4350.5,0.001]
[1760022857017,7.29284206,4350.6,4350.5,0.001]
[1760022857419,6.46965137,4350.6,4350.5,0.001]
[1760022858545,6.46885137,4350.6,4350.5,0.001]
[1760022858859,7.15905315,4350.6,4350.5,0.001]
[1760022859743,7.15901761,4350.6,4350.5,0.001]
[1760022860972,14.95935115,4350.6,4350.5,0.001]
[1760022863451,13.72501761,4350.6,4350.5,0.001]
[1760022864157,17.57376441,4350.6,4350.5,0.001]
[1760022864559,2.93239772,4350.1,4350.0,0.001]
[1760022864750,22.54593708,4350.1,4350.0,0.001]
[1760022864946,22.96647376,4350.1,4350.0,0.001]
[1760022865480,2.5536,4350.0,4349.6,0.001]
[1760022865685,8.70135592,4349.7,4349.6,0.001]
[1760022865987,16.99504481,4349.7,4349.6,0.001]
[1760022866192,25.45401934,4349.7,4349.6,0.001]
[1760022866488,25.98957271,4349.7,4349.6,0.001]
[1760022866883,19.42357271,4349.7,4349.6,0.001]
[1760022867474,25.98957271,4349.7,4349.6,0.001]
[1760022867676,19.42357271,4349.7,4349.6,0.001]
[1760022867881,25.98957271,4349.7,4349.6,0.001]
[1760022870255,27.13037334,4349.7,4349.6,0.001]
[1760022871607,20.56437334,4349.7,4349.6,0.001]
[1760022871808,27.13137334,4349.7,4349.6,0.001]
[1760022872172,20.56437334,4349.7,4349.6,0.001]
[1760022872373,27.13037334,4349.7,4349.6,0.001]
[1760022873118,5.34657907,4349.7,4349.6,0.001]
[1760022873405,10.4350188,4349.7,4349.6,0.001]
[1760022873608,1.3154188,4349.7,4349.6,0.001]
[1760022873775,8.97996995,4349.7,4349.6,0.001]
[1760022873969,9.61356995,4349.7,4349.6,0.001]
[1760022874400,11.91257907,4349.7,4349.6,0.001]
[1760022875204,12.52867109,4349.7,4349.6,0.001]
[1760022875777,5.96267109,4349.7,4349.6,0.001]
[1760022875974,11.91257907,4349.7,4349.6,0.001]
[1760022876173,12.52867114,4349.7,4349.6,0.001]
[1760022876411,11.91257907,4349.7,4349.6,0.001]
[1760022876576,12.52866859,4349.7,4349.6,0.001]
[1760022876972,10.22965947,4349.7,4349.6,0.001]
[1760022877177,12.52866859,4349.7,4349.6,0.001]
[1760022877888,14.33972033,4349.7,4349.6,0.001]
[1760022878083,13.72363081,4349.7,4349.6,0.001]
[1760022879309,14.54507966,4349.7,4349.6,0.001]
[1760022879815,14.65947966,4349.7,4349.6,0.001]
[1760022880212,13.83803081,4349.7,4349.6,0.001]
[1760022881609,13.83723081,4349.7,4349.6,0.001]
[1760022882533,13.37263081,4349.7,4349.6,0.001]
[1760022882692,13.83723081,4349.7,4349.6,0.001]
[1760022882892,15.07224311,4349.7,4349.6,0.001]
[1760022883483,14.60764311,4349.7,4349.6,0.001]
[1760022883690,15.07224311,4349.7,4349.6,0.001]
[1760022884094,13.37263081,4349.7,4349.6,0.001]
[1760022884311,8.04164311,4349.7,4349.6,0.001]
[1760022884507,3.16116995,4349.7,4349.6,0.001]
[1760022884708,9.63473327,4349.7,4349.6,0.001]
[1760022884944,11.91077907,4349.7,4349.6,0.001]
[1760022885766,12.38247907,4349.7,4349.6,0.001]
[1760022886652,11.91077907,4349.7,4349.6,0.001]
[1760022886854,9.61176995,4349.7,4349.6,0.001]
[1760022887150,5.34577907,4349.7,4349.6,0.001]
[1760022887354,11.91077907,4349.7,4349.6,0.001]
[1760022888828,14.39134401,4349.7,4349.6,0.001]
[1760022890044,13.91964401,4349.7,4349.6,0.001]
[1760022890226,2.41316995,4349.7,4349.6,0.001]
[1760022890428,3.23806802,4349.7,4349.6,0.1154]
[1760022890742,3.87166802,4349.7,4349.6,0.1154]
[1760022892161,3.04676995,4349.7,4349.6,0.1154]
[1760022895759,3.66552048,4349.7,4349.6,0.1154]
[1760022895943,3.66551638,4349.7,4349.6,0.1154]
[1760022896738,3.66546605,4349.7,4349.6,0.1154]
[1760022897884,1.11186605,4349.7,4349.6,0.1154]
[1760022898184,0.49316995,4349.7,4349.6,0.1154]
[1760022899353,0.49516995,4349.7,4349.6,0.1154]
[1760022900386,8.21998091,4349.7,4349.6,0.1154]
[1760022900575,3.04876995,4349.7,4349.6,0.001]
[1760022900759,3.03376591,4349.7,4349.6,0.001]
[1760022900962,2.41516995,4349.7,4349.6,0.001]
[1760022901152,3.69032923,4349.7,4349.6,0.001]
[1760022901353,5.37074239,4349.7,4349.6,0.001]
[1760022901580,5.34777907,4349.7,4349.6,0.001]
[1760022901885,8.35390514,4349.7,4349.6,0.001]
[1760022902050,7.11889284,4349.7,4349.6,0.001]
[1760022902886,6.64789284,4349.7,4349.6,0.001]
[1760022903083,8.35610348,4349.7,4349.6,0.001]
[1760022903262,7.11889284,4349.7,4349.6,0.001]
[1760022903674,8.35620891,4349.7,4349.6,0.001]
[1760022904084,7.11889284,4349.7,4349.6,0.001]
[1760022904296,13.68189284,4349.7,4349.6,0.001]
[1760022904501,13.68109284,4349.7,4349.6,0.001]
[1760022904687,14.91839791,4349.7,4349.6,0.001]
[1760022905053,13.68109284,4349.7,4349.6,0.001]
[1760022907154,0.6336,4349.2,4349.1,0.001]
[1760022907361,2.57656332,4349.2,4349.1,0.001]
[1760022907566,0.65656332,4349.2,4349.1,0.001]
[1760022907784,2.57656332,4349.2,4349.1,0.001]
[1760022907985,5.70183548,4349.2,4349.1,0.001]
[1760022908312,7.40413413,4349.2,4349.1,0.001]
[1760022908522,7.52223643,4349.2,4349.1,0.001]
[1760022909795,14.8520382,4349.2,4349.1,0.001]
[1760022909961,12.77177749,4349.2,4349.1,0.001]
[1760022910159,11.53297572,4349.2,4349.1,0.001]
[1760022910359,12.77177749,4349.2,4349.1,0.001]
[1760022910596,13.24277749,4349.2,4349.1,0.001]
[1760022911292,9.1156,4349.2,4349.1,0.001]
[1760022911494,11.52972909,4349.2,4349.1,0.001]
[1760022911799,1.23880177,4349.3,4349.1,0.001]
[1760022912098,0.6336,4349.3,4349.1,0.001]
[1760022912297,7.93175138,4349.2,4349.1,0.001]
[1760022912601,8.28810478,4349.2,4349.1,0.001]
[1760022912786,9.38242496,4349.2,4349.1,0.001]
[1760022913188,10.20810356,4349.2,4349.1,0.001]
[1760022913493,9.38242496,4349.2,4349.1,0.001]
[1760022913693,11.50043228,4349.2,4349.1,0.001]
[1760022913894,12.73923405,4349.2,4349.1,0.001]
[1760022914192,11.50043228,4349.2,4349.1,0.001]
[1760022916210,9.20115886,4349.2,4346.7,2.391]
[1760022916377,9.38348278,4347.2,4345.4,2.454]
[1760022916581,16.46883549,4347.2,4346.0,0.001]
[1760022916777,16.46883549,4347.2,4345.4,2.454]
[1760022916778,3.04895271,4347.2,4347.1,0.006]
[1760022917102,0.49535271,4347.2,4347.1,0.006]
[1760022917521,0.61913134,4347.5,4347.1,0.006]
[1760022917522,0.61913134,4347.8,4347.1,0.006]
[1760022917677,1.92,4347.9,4347.1,0.006]
[1760022917678,0.49480444,4347.7,4347.1,4.69734658]
[1760022917885,0.49480444,4347.6,4347.2,0.47073466]
[1760022918181,0.49480444,4347.5,4347.3,0.001]
[1760022918386,1.25273134,4348.0,4347.3,0.001]
[1760022918603,0.49468156,4347.9,4347.4,0.001]
[1760022918819,0.49468156,4347.8,4347.4,0.001]
[1760022919001,0.49468156,4347.7,4347.4,0.001]
[1760022919200,0.49468156,4347.6,4347.5,0.001]
[1760022919407,0.49468156,4347.6,4347.2,0.46973466]
[1760022919700,0.65656332,4348.0,4347.1,2.396]
[1760022919701,0.65656332,4348.0,4347.3,0.28657347]
[1760022919904,0.49453187,4347.9,4347.4,0.001]
[1760022920118,0.65656332,4348.0,4347.4,0.001]
[1760022920119,0.49453187,4347.8,4347.4,0.001]
[1760022920434,0.49453187,4347.7,4347.4,0.001]
[1760022920599,0.49453187,4347.6,4347.4,0.001]
[1760022920794,0.02296332,4348.0,4347.4,0.001]
[1760022921009,0.61913134,4348.7,4347.6,2.3001196]
[1760022921210,0.61913134,4348.7,4347.4,2.32319588]
[1760022921211,0.49435013,4348.6,4347.7,2.76248165]
[1760022921413,0.49435013,4348.5,4347.8,2.3010129]
[1760022921720,0.49435013,4348.4,4347.9,0.001]
[1760022921884,0.6336,4348.8,4348.3,0.1144]
[1760022922079,0.49436907,4348.7,4348.3,0.1144]
[1760022922412,0.49436907,4348.6,4348.4,0.02399696]
[1760022922618,0.49436907,4348.5,4348.0,2.299908]
[1760022922820,1.94296332,4349.4,4347.9,2.391]
[1760022922821,0.61913134,4349.0,4348.4,0.1144]
[1760022923007,0.49440492,4348.9,4348.5,0.02299643]
[1760022923201,0.61913134,4349.0,4348.5,0.001]
[1760022923202,0.49440492,4348.8,4348.5,0.001]
[1760022923402,0.49440492,4348.7,4348.1,3.37809157]
[1760022923612,1.25273134,4349.0,4348.9,0.1144]
[1760022923818,1.74719221,4349.0,4348.9,0.1144]
[1760022924322,1.12806087,4349.0,4348.9,0.1144]
[1760022924494,1.15102419,4349.0,4348.9,0.1144]
[1760022925031,1.68542683,4349.6,4348.9,0.1144]
[1760022925032,0.002,4349.7,4348.9,5.81443204]
[1760022925238,0.49438813,4349.6,4349.0,0.84353699]
[1760022925530,0.49438813,4349.5,4349.1,0.001]
[1760022925741,0.49438813,4349.4,4349.2,0.001]
[1760022925885,0.002,4349.7,4349.4,0.1144]
[1760022926091,0.4944174,4349.6,4349.4,0.1144]
[1760022926290,1.1280174,4349.5,4349.4,0.1144]
[1760022927327,0.4944174,4349.5,4349.4,0.001]
[1760022927620,0.4936174,4349.5,4349.4,0.1154]
[1760022928114,0.4936174,4349.5,4349.4,0.1144]
[1760022928624,0.4936174,4349.5,4349.4,0.1154]
[1760022930145,0.002,4349.7,4349.4,0.35687129]
[1760022930319,0.002,4349.7,4349.5,0.02299114]
[1760022930648,0.002,4349.7,4349.5,0.02399114]
[1760022930819,0.002,4349.7,4349.6,0.02399061]
[1760022931021,0.002,4349.7,4349.6,2.32305259]
[1760022931342,0.002,4349.7,4349.6,2.79671337]
[1760022931543,0.002,4349.7,4349.6,2.77372276]
[1760022932147,0.002,4349.7,4349.6,4.69372276]
[1760022933213,0.002,4349.7,4349.6,11.28672276]
[1760022933461,0.002,4350.6,4350.1,2.29879772]
[1760022933625,0.002,4350.6,4350.1,16.63356472]
[1760022933826,0.002,4350.6,4350.1,16.63456472]
[1760022934253,0.002,4350.4,4350.1,17.10439566]
[1760022936813,0.002,4350.4,4350.1,16.63456472]
[1760022937016,0.002,4350.4,4350.1,23.22456472]
[1760022938032,0.002,4350.4,4350.1,23.50069279]
[1760022938640,0.002,4350.4,4350.1,23.95461907]
[1760022941427,0.002,4350.4,4350.1,5.133491]
[1760022941763,0.002,4350.4,4350.1,33.232491]
[1760022942262,0.002,4350.4,4350.1,33.346891]
[1760022943355,0.002,4350.6,4350.5,2.29858636]
[1760022943554,0.002,4350.6,4350.5,11.24843086]
[1760022943752,0.005,4350.9,4350.5,11.24843086]
[1760022943753,1e-08,4350.9,4350.6,2.29853353]
[1760022943938,1e-08,4350.9,4350.8,0.1144]
[1760022944272,1e-08,4350.9,4350.8,10.91682787]
[1760022944572,1e-08,4350.9,4350.8,10.91782787]
[1760022944738,1e-08,4350.9,4350.8,12.37262268]
[1760022944947,1e-08,4350.9,4350.8,12.64875075]
[1760022945149,1e-08,4350.9,4350.8,13.28235075]
[1760022946774,1e-08,4350.9,4350.8,13.00622268]
[1760022947348,0.005,4353.9,4351.0,2.93192222]
[1760022947658,0.005,4353.9,4351.4,6.60711095]
[1760022947975,0.005,4353.9,4351.4,13.30651095]
[1760022948137,0.005,4353.9,4351.5,1.92]
[1760022948343,0.005,4353.9,4351.8,2.41229971]
[1760022948543,0.005,4353.9,4351.9,4.21784691]
[1760022948767,0.005,4353.9,4352.8,2.2973718]
[1760022949076,0.005,4353.9,4352.8,11.40874551]
[1760022949280,0.005,4353.9,4352.8,11.3867718]
[1760022950333,0.005,4353.9,4352.8,13.3067718]
[1760022950565,0.0042,4352.9,4352.8,13.3067718]
[1760022950883,0.0042,4352.9,4352.8,14.51621579]
[1760022951181,0.0062,4352.9,4352.8,14.51621579]
[1760022952170,0.0062,4352.9,4352.8,1.32484399]
[1760022952357,0.0062,4352.9,4352.8,2.39]
[1760022952595,0.0062,4352.9,4352.8,0.001]
[1760022952780,0.6336,4352.8,4352.0,2.389]
[1760022952971,0.02296332,4352.7,4352.1,2.101]
[1760022953304,0.49064567,4352.6,4352.1,2.101]
[1760022953603,2.95396444,4352.8,4352.2,0.001]
[1760022953813,0.49064989,4352.7,4352.2,0.001]
[1760022954011,0.0062,4352.9,4352.2,0.47307688]
[1760022954216,0.4906126,4352.8,4352.3,0.001]
[1760022954416,0.0062,4352.9,4352.4,6.579]
[1760022954417,0.4906126,4352.7,4352.4,6.579]
[1760022954582,0.0062,4352.9,4352.4,6.579]
[1760022954769,0.49098741,4352.8,4352.5,0.001]
[1760022954971,0.49098741,4352.7,4352.6,0.001]
[1760022955172,0.49098741,4352.7,4352.4,6.579]
[1760022955405,0.4912212,4352.6,4352.5,0.6808753]
[1760022955608,0.0062,4352.9,4352.5,0.6579]
[1760022955913,0.0062,4352.9,4352.6,0.001]
[1760022956244,0.49145069,4352.8,4352.7,0.001]
[1760022956379,0.49145069,4352.8,4352.7,6.577]
[1760022956577,0.49145069,4352.8,4352.7,6.578]
[1760022956917,0.0062,4352.9,4352.7,6.578]
[1760022957085,0.0062,4352.9,4352.7,6.577]
[1760022957286,0.49177169,4352.8,4352.7,6.577]
[1760022957823,0.49177169,4352.8,4352.7,6.578]
[1760022960015,1.10574813,4352.8,4352.7,6.578]
[1760022960706,1.10815288,4352.8,4352.7,6.578]
[1760022960911,0.49177169,4352.8,4352.7,6.578]
[1760022961394,1.10846808,4352.8,4352.7,6.578]
[1760022961834,0.49177169,4352.8,4352.7,6.578]
[1760022962217,0.49177169,4352.8,4352.7,7.3502]
[1760022962598,0.49177169,4352.8,4352.7,6.6924]
[1760022962831,0.49177169,4352.8,4352.7,0.1144]
[1760022963030,0.49177169,4352.8,4352.7,6.6854]
[1760022963333,1.31734813,4352.8,4352.7,6.6854]
[1760022963517,1.31734813,4352.8,4352.7,6.6864]
[1760022964737,0.49177169,4352.8,4352.7,6.6864]
[1760022965100,1.31503788,4352.8,4352.7,6.6864]
[1760022965331,0.49177169,4352.8,4352.7,6.6864]
[1760022965741,1.31516571,4352.8,4352.7,6.6864]
[1760022965910,0.49177169,4352.8,4352.7,6.6864]
[1760022967405,0.49177169,4352.8,4352.7,7.59394]
[1760022967818,0.49177169,4352.8,4352.7,9.89136458]
[1760022969670,0.0062,4352.9,4352.7,9.89136458]
[1760022969671,0.0062,4352.9,4352.8,2.2973718]
[1760022969965,0.0062,4352.9,4352.8,2.32134551]
[1760022970265,0.0062,4352.9,4352.8,4.19182872]
[1760022970712,0.0062,4352.9,4352.8,4.16885501]
[1760022970916,0.0062,4352.9,4352.8,6.08885501]
[1760022972147,0.0062,4352.9,4352.8,24.60085501]
[1760022973141,0.0062,4352.9,4352.8,13.81448321]
[1760022973324,0.0062,4352.9,4352.8,22.67985501]
[1760022973719,0.0054,4352.9,4352.8,22.67985501]
[1760022974947,0.0054,4352.9,4352.8,25.7008354]
[1760022974948,1e-08,4352.9,4352.8,25.7008354]
[1760022975162,0.002,4353.4,4353.3,4.85070794]
[1760022975457,0.005,4353.9,4353.3,4.85070794]